[Event "Late-Titled-Tuesday-Blitz-October-24-2023"]
[Site "Chess.com"]
[Date "2023.10.24"]
[Round "2"]
[White "ShahxaibKhan"]
[Black "Maluco_do_Natal_00"]
[Result "1-0"]
[WhiteElo "2424"]
[BlackElo "2026"]
[TimeControl "180+1"]
[EndTime "14:19:15 PDT"]
[Termination "ShahxaibKhan won by checkmate"]

1. e4 {[%clk 0:03:00.9]} 1... c5 {[%clk 0:02:59.4]} 2. Nc3 {[%clk 0:02:58]} 2...
Nc6 {[%clk 0:02:58.8]} 3. f4 {[%clk 0:02:57.3]} 3... d6 {[%clk 0:02:58.7]} 4.
Nf3 {[%clk 0:02:58.2]} 4... Bg4 {[%clk 0:02:57.3]} 5. Bb5 {[%clk 0:02:58.6]}
5... e6 {[%clk 0:02:51]} 6. h3 {[%clk 0:02:58.2]} 6... Bxf3 {[%clk 0:02:47.2]}
7. Qxf3 {[%clk 0:02:59.1]} 7... Be7 {[%clk 0:02:46.3]} 8. O-O {[%clk 0:02:55.3]}
8... Rc8 {[%clk 0:02:44.5]} 9. b3 {[%clk 0:02:36.7]} 9... a6 {[%clk 0:02:41.9]}
10. Bxc6+ {[%clk 0:02:36.5]} 10... Rxc6 {[%clk 0:02:42.8]} 11. Bb2 {[%clk
0:02:34.6]} 11... Nf6 {[%clk 0:02:28.6]} 12. Rad1 {[%clk 0:02:27.6]} 12... O-O
{[%clk 0:02:27.2]} 13. Kh1 {[%clk 0:02:26.8]} 13... Nd7 {[%clk 0:02:06.1]} 14.
Bc1 {[%clk 0:02:20.1]} 14... Bf6 {[%clk 0:02:00.8]} 15. Ne2 {[%clk 0:02:18.3]}
15... c4 {[%clk 0:01:46.6]} 16. c3 {[%clk 0:02:02.3]} 16... Qa5 {[%clk
0:01:35.2]} 17. bxc4 {[%clk 0:01:30.7]} 17... Rxc4 {[%clk 0:01:32.2]} 18. a3
{[%clk 0:01:28.9]} 18... e5 {[%clk 0:01:25.7]} 19. d3 {[%clk 0:01:22.2]} 19...
Rcc8 {[%clk 0:01:16.4]} 20. Qg4 {[%clk 0:01:19.8]} 20... Qa4 {[%clk 0:01:04.6]}
21. c4 {[%clk 0:01:03.6]} 21... exf4 {[%clk 0:01:00.9]} 22. Bxf4 {[%clk
0:00:59]} 22... Ne5 {[%clk 0:00:50.8]} 23. Bxe5 {[%clk 0:00:58.2]} 23... dxe5
{[%clk 0:00:50.8]} 24. Nc3 {[%clk 0:00:54.3]} 24... Qc6 {[%clk 0:00:33.2]} 25.
Nd5 {[%clk 0:00:50.1]} 25... Kh8 {[%clk 0:00:25.1]} 26. Rxf6 {[%clk 0:00:46.9]}
26... gxf6 {[%clk 0:00:24.5]} 27. Rf1 {[%clk 0:00:44.6]} 27... Rg8 {[%clk
0:00:20.5]} 28. Qh5 {[%clk 0:00:42.9]} 28... Rg6 {[%clk 0:00:16.3]} 29. Qf5
{[%clk 0:00:15.6]} 29... Qe6 {[%clk 0:00:15.3]} 30. Qf3 {[%clk 0:00:14.1]} 30...
Rc6 {[%clk 0:00:13]} 31. Rf2 {[%clk 0:00:13.1]} 31... Kg7 {[%clk 0:00:12.8]} 32.
Ne3 {[%clk 0:00:11.7]} 32... Kh8 {[%clk 0:00:11]} 33. Qh5 {[%clk 0:00:11.6]}
33... b5 {[%clk 0:00:10.4]} 34. cxb5 {[%clk 0:00:11.3]} 34... axb5 {[%clk
0:00:11.3]} 35. Kh2 {[%clk 0:00:11.1]} 35... Rc1 {[%clk 0:00:10.9]} 36. Ng4
{[%clk 0:00:09.5]} 36... Kg7 {[%clk 0:00:10.1]} 37. Ne3 {[%clk 0:00:08.5]} 37...
Rc3 {[%clk 0:00:09.4]} 38. Rb2 {[%clk 0:00:07.9]} 38... Rxd3 {[%clk 0:00:08.7]}
39. Nf5+ {[%clk 0:00:06.8]} 39... Kf8 {[%clk 0:00:06.1]} 40. Rc2 {[%clk
0:00:07.3]} 40... Rd8 {[%clk 0:00:05.8]} 41. Rc7 {[%clk 0:00:05.7]} 41... Rg5
{[%clk 0:00:03.5]} 42. Qxh7 {[%clk 0:00:05.1]} 42... Rxf5 {[%clk 0:00:03.4]} 43.
Qh8# {[%clk 0:00:04.8]} 1-0

[Event "Late-Titled-Tuesday-Blitz-October-24-2023"]
[Site "Chess.com"]
[Date "2023.10.24"]
[Round "2"]
[White "victormago"]
[Black "dianamirza"]
[Result "1-0"]
[WhiteElo "2413"]
[BlackElo "1996"]
[TimeControl "180+1"]
[EndTime "14:19:18 PDT"]
[Termination "victormago won by checkmate"]

1. d4 {[%clk 0:02:58.3]} 1... Nf6 {[%clk 0:02:58.3]} 2. c4 {[%clk 0:02:57.3]}
2... g6 {[%clk 0:02:58.7]} 3. Nc3 {[%clk 0:02:55.5]} 3... Bg7 {[%clk 0:02:59.2]}
4. e4 {[%clk 0:02:55.1]} 4... d6 {[%clk 0:02:59.4]} 5. Be2 {[%clk 0:02:55.7]}
5... O-O {[%clk 0:02:59.8]} 6. Bg5 {[%clk 0:02:55.4]} 6... e5 {[%clk 0:02:57.6]}
7. d5 {[%clk 0:02:54.1]} 7... h6 {[%clk 0:02:55.2]} 8. Be3 {[%clk 0:02:53.4]}
8... Kh7 {[%clk 0:02:53.6]} 9. f3 {[%clk 0:02:52.1]} 9... Na6 {[%clk 0:02:51.3]}
10. g4 {[%clk 0:02:52]} 10... Nc5 {[%clk 0:02:48.2]} 11. b4 {[%clk 0:02:50.6]}
11... Na6 {[%clk 0:02:45.7]} 12. a3 {[%clk 0:02:50.7]} 12... Ng8 {[%clk
0:02:39.1]} 13. h4 {[%clk 0:02:46.4]} 13... f5 {[%clk 0:02:39.4]} 14. h5 {[%clk
0:02:45.9]} 14... f4 {[%clk 0:02:32.3]} 15. hxg6+ {[%clk 0:02:41.1]} 15... Kxg6
{[%clk 0:02:27.2]} 16. Bf2 {[%clk 0:02:42]} 16... Nf6 {[%clk 0:02:23.4]} 17. Qb3
{[%clk 0:02:15.9]} 17... Rh8 {[%clk 0:02:14.7]} 18. O-O-O {[%clk 0:01:47.5]}
18... Nb8 {[%clk 0:02:10.2]} 19. Bd3 {[%clk 0:01:43.3]} 19... a5 {[%clk
0:02:10.1]} 20. Nge2 {[%clk 0:01:38.5]} 20... axb4 {[%clk 0:02:09.9]} 21. axb4
{[%clk 0:01:38.2]} 21... Bd7 {[%clk 0:01:58.2]} 22. Kb2 {[%clk 0:01:37]} 22...
c6 {[%clk 0:01:56.6]} 23. Ra1 {[%clk 0:01:18.5]} 23... Na6 {[%clk 0:01:40.1]}
24. dxc6 {[%clk 0:01:14.9]} 24... bxc6 {[%clk 0:01:37.1]} 25. c5 {[%clk
0:01:12.5]} 25... Nxb4 {[%clk 0:01:16.8]} 26. Qxb4 {[%clk 0:01:02.5]} 26... Rb8
{[%clk 0:01:16.5]} 27. Bb5 {[%clk 0:00:59.5]} 27... cxb5 {[%clk 0:01:14.5]} 28.
cxd6 {[%clk 0:00:58.3]} 28... Be6 {[%clk 0:00:59.8]} 29. Ra7 {[%clk 0:00:48.3]}
29... Bc4 {[%clk 0:00:51]} 30. Rha1 {[%clk 0:00:34.4]} 30... Ne8 {[%clk
0:00:50]} 31. Bc5 {[%clk 0:00:26.2]} 31... h5 {[%clk 0:00:45.6]} 32. d7 {[%clk
0:00:20.3]} 32... Nf6 {[%clk 0:00:42.6]} 33. gxh5+ {[%clk 0:00:17.6]} 33... Rxh5
{[%clk 0:00:42]} 34. Rg1+ {[%clk 0:00:17.4]} 34... Kf7 {[%clk 0:00:34.8]} 35.
Rg2 {[%clk 0:00:15.4]} 35... Nxd7 {[%clk 0:00:28.7]} 36. Bd6 {[%clk 0:00:14.1]}
36... Ra8 {[%clk 0:00:22.8]} 37. Rxa8 {[%clk 0:00:13.3]} 37... Qxa8 {[%clk
0:00:22.7]} 38. Bc7 {[%clk 0:00:09]} 38... Bf8 {[%clk 0:00:15.9]} 39. Bd6 {[%clk
0:00:08.7]} 39... Rh8 {[%clk 0:00:08.5]} 40. Bxf8 {[%clk 0:00:07.7]} 40... Rxf8
{[%clk 0:00:09.4]} 41. Qd6 {[%clk 0:00:06.5]} 41... Bxe2 {[%clk 0:00:06.4]} 42.
Qxd7+ {[%clk 0:00:05.4]} 42... Kf6 {[%clk 0:00:05.6]} 43. Rxe2 {[%clk
0:00:05.5]} 43... Rf7 {[%clk 0:00:04.5]} 44. Nd5+ {[%clk 0:00:03.8]} 44... Kg7
{[%clk 0:00:04.1]} 45. Rg2+ {[%clk 0:00:03.9]} 45... Kf8 {[%clk 0:00:04.4]} 46.
Qd6+ {[%clk 0:00:04.3]} 46... Ke8 {[%clk 0:00:03.2]} 47. Rg8+ {[%clk 0:00:04.7]}
47... Rf8 {[%clk 0:00:02.9]} 48. Rxf8# {[%clk 0:00:05.2]} 1-0

[Event "Late-Titled-Tuesday-Blitz-October-24-2023"]
[Site "Chess.com"]
[Date "2023.10.24"]
[Round "2"]
[White "Aemulus20"]
[Black "acertijo08"]
[Result "1-0"]
[WhiteElo "2642"]
[BlackElo "2346"]
[TimeControl "180+1"]
[EndTime "14:19:19 PDT"]
[Termination "Aemulus20 won by resignation"]

1. Nf3 {[%clk 0:03:00.9]} 1... Nf6 {[%clk 0:02:59.2]} 2. c4 {[%clk 0:02:59.3]}
2... e6 {[%clk 0:02:59.3]} 3. e3 {[%clk 0:02:57.4]} 3... d5 {[%clk 0:02:59.5]}
4. b3 {[%clk 0:02:56.5]} 4... c5 {[%clk 0:02:59.5]} 5. Bb2 {[%clk 0:02:56.7]}
5... Nc6 {[%clk 0:02:59.7]} 6. cxd5 {[%clk 0:02:56.3]} 6... exd5 {[%clk
0:02:59.5]} 7. Bb5 {[%clk 0:02:50.4]} 7... Bd6 {[%clk 0:02:59]} 8. O-O {[%clk
0:02:48.7]} 8... O-O {[%clk 0:02:58.5]} 9. d4 {[%clk 0:02:46.9]} 9... Bg4 {[%clk
0:02:56.7]} 10. dxc5 {[%clk 0:02:45.1]} 10... Bxc5 {[%clk 0:02:56.9]} 11. Be2
{[%clk 0:02:42.9]} 11... a6 {[%clk 0:02:55.2]} 12. Nc3 {[%clk 0:02:38.8]} 12...
Ba7 {[%clk 0:02:51.4]} 13. h3 {[%clk 0:02:35.3]} 13... Bh5 {[%clk 0:02:50.6]}
14. Rc1 {[%clk 0:02:28.1]} 14... Re8 {[%clk 0:02:50.4]} 15. Na4 {[%clk 0:02:24]}
15... Ne4 {[%clk 0:02:49.9]} 16. Nd4 {[%clk 0:02:06.3]} 16... Bxe2 {[%clk
0:02:37.4]} 17. Nxe2 {[%clk 0:02:07.2]} 17... Qd6 {[%clk 0:02:27.1]} 18. Nd4
{[%clk 0:01:49.9]} 18... Bb8 {[%clk 0:02:21.8]} 19. f4 {[%clk 0:01:49]} 19...
Nf6 {[%clk 0:02:02.3]} 20. Nc5 {[%clk 0:01:42]} 20... Nxd4 {[%clk 0:01:45.4]}
21. Bxd4 {[%clk 0:01:30.3]} 21... b6 {[%clk 0:01:29.2]} 22. Nd3 {[%clk
0:01:24.3]} 22... Ra7 {[%clk 0:01:05.2]} 23. Ne5 {[%clk 0:01:16.2]} 23... Rc7
{[%clk 0:01:00.8]} 24. Qd3 {[%clk 0:01:09]} 24... b5 {[%clk 0:00:55.4]} 25. Rxc7
{[%clk 0:01:04.8]} 25... Bxc7 {[%clk 0:00:52.3]} 26. Rc1 {[%clk 0:01:04.3]}
26... Qd8 {[%clk 0:00:33.3]} 27. Rc6 {[%clk 0:00:51.7]} 27... Ne4 {[%clk
0:00:28.8]} 28. Rxa6 {[%clk 0:00:47.1]} 28... f6 {[%clk 0:00:29.3]} 29. Nc6
{[%clk 0:00:40.6]} 29... Qd7 {[%clk 0:00:23.9]} 30. Qxb5 {[%clk 0:00:36.2]}
30... Qf5 {[%clk 0:00:20.6]} 31. Ra7 {[%clk 0:00:20.2]} 31... Bd6 {[%clk
0:00:19.8]} 32. Nb4 {[%clk 0:00:16.7]} 32... Rf8 {[%clk 0:00:18.3]} 33. Qxd5+
{[%clk 0:00:16.8]} 33... Qxd5 {[%clk 0:00:17.4]} 34. Nxd5 {[%clk 0:00:17.7]}
34... Ng3 {[%clk 0:00:16.7]} 35. Kf2 {[%clk 0:00:17]} 35... Ne4+ {[%clk
0:00:16.3]} 36. Ke2 {[%clk 0:00:17.5]} 36... Rc8 {[%clk 0:00:15.7]} 37. Ne7+
{[%clk 0:00:11.7]} 37... Bxe7 {[%clk 0:00:15.8]} 38. Rxe7 {[%clk 0:00:12.6]}
38... Nd6 {[%clk 0:00:14.5]} 39. Ra7 {[%clk 0:00:09.1]} 39... Nb5 {[%clk
0:00:14.1]} 40. Ra5 {[%clk 0:00:08.6]} 40... Nxd4+ {[%clk 0:00:14]} 41. exd4
{[%clk 0:00:09.5]} 41... Rc2+ {[%clk 0:00:14.1]} 42. Kf3 {[%clk 0:00:10.1]}
42... Rd2 {[%clk 0:00:13.8]} 43. d5 {[%clk 0:00:10.4]} 43... Kf7 {[%clk
0:00:13.1]} 44. b4 {[%clk 0:00:11]} 44... Rb2 {[%clk 0:00:12.6]} 45. Ra7+ {[%clk
0:00:10.6]} 45... Kg6 {[%clk 0:00:12.8]} 46. a3 {[%clk 0:00:10.1]} 46... Rd2
{[%clk 0:00:12.4]} 47. Ra5 {[%clk 0:00:09]} 47... f5 {[%clk 0:00:12.2]} 48. g4
{[%clk 0:00:09.3]} 48... fxg4+ {[%clk 0:00:12.1]} 49. hxg4 {[%clk 0:00:09.5]}
49... Rd3+ {[%clk 0:00:12.8]} 50. Ke4 {[%clk 0:00:09.6]} 50... h5 {[%clk
0:00:13.5]} 51. gxh5+ {[%clk 0:00:09.4]} 51... Kxh5 {[%clk 0:00:13.2]} 52. Kxd3
{[%clk 0:00:10.3]} 52... Kg4 {[%clk 0:00:13.6]} 53. d6 {[%clk 0:00:11.2]} 53...
Kxf4 {[%clk 0:00:13.9]} 54. d7 {[%clk 0:00:12.1]} 1-0

[Event "Late-Titled-Tuesday-Blitz-October-24-2023"]
[Site "Chess.com"]
[Date "2023.10.24"]
[Round "2"]
[White "IMSlavin"]
[Black "iJueles"]
[Result "1-0"]
[WhiteElo "2221"]
[BlackElo "2468"]
[TimeControl "180+1"]
[EndTime "14:19:26 PDT"]
[Termination "IMSlavin won by resignation"]

1. e4 {[%clk 0:02:59.3]} 1... c6 {[%clk 0:03:00]} 2. d4 {[%clk 0:02:59.1]} 2...
d5 {[%clk 0:02:59.3]} 3. e5 {[%clk 0:02:59.1]} 3... Bf5 {[%clk 0:02:58.9]} 4.
Nf3 {[%clk 0:02:59.4]} 4... e6 {[%clk 0:02:58.6]} 5. Be2 {[%clk 0:02:59.6]} 5...
Nd7 {[%clk 0:02:58.3]} 6. O-O {[%clk 0:02:59.4]} 6... h6 {[%clk 0:02:58.2]} 7.
c3 {[%clk 0:02:59.8]} 7... Ne7 {[%clk 0:02:56.4]} 8. a3 {[%clk 0:03:00.2]} 8...
g5 {[%clk 0:02:56.1]} 9. b4 {[%clk 0:02:59.7]} 9... Bg7 {[%clk 0:02:56.1]} 10.
Nbd2 {[%clk 0:02:58]} 10... O-O {[%clk 0:02:55.2]} 11. Nb3 {[%clk 0:02:58.1]}
11... Ng6 {[%clk 0:02:53.5]} 12. Bd3 {[%clk 0:02:55.9]} 12... Bxd3 {[%clk
0:02:52.9]} 13. Qxd3 {[%clk 0:02:56]} 13... Rc8 {[%clk 0:02:35.6]} 14. Nc5
{[%clk 0:02:55.8]} 14... b6 {[%clk 0:02:33.2]} 15. Nxd7 {[%clk 0:02:51.6]} 15...
Qxd7 {[%clk 0:02:34.1]} 16. Be3 {[%clk 0:02:42.7]} 16... Rc7 {[%clk 0:02:07.6]}
17. Rfb1 {[%clk 0:02:35.5]} 17... Ne7 {[%clk 0:02:01.3]} 18. a4 {[%clk
0:02:32.9]} 18... Nf5 {[%clk 0:01:59.7]} 19. a5 {[%clk 0:02:30.2]} 19... b5
{[%clk 0:01:58.4]} 20. Bd2 {[%clk 0:02:19.2]} 20... a6 {[%clk 0:01:56.8]} 21. g4
{[%clk 0:02:14.4]} 21... Ne7 {[%clk 0:01:54.6]} 22. h4 {[%clk 0:02:13.8]} 22...
gxh4 {[%clk 0:01:51.4]} 23. Nxh4 {[%clk 0:02:13.5]} 23... Qd8 {[%clk 0:01:35.9]}
24. Kg2 {[%clk 0:02:10]} 24... f6 {[%clk 0:00:56.7]} 25. exf6 {[%clk 0:01:45.9]}
25... Rxf6 {[%clk 0:00:55.4]} 26. Rh1 {[%clk 0:01:35.9]} 26... Nc8 {[%clk
0:00:43.5]} 27. Ng6 {[%clk 0:01:26.6]} 27... Qe8 {[%clk 0:00:38.9]} 28. Ne5
{[%clk 0:01:25.5]} 28... Nd6 {[%clk 0:00:38.3]} 29. f3 {[%clk 0:01:22.7]} 29...
Nc4 {[%clk 0:00:36.9]} 30. Rh5 {[%clk 0:01:13.8]} 30... Nxe5 {[%clk 0:00:31.7]}
31. dxe5 {[%clk 0:01:07.1]} 31... Qg6 {[%clk 0:00:24]} 32. Qxg6 {[%clk
0:00:59.1]} 32... Rxg6 {[%clk 0:00:24.9]} 33. Rah1 {[%clk 0:00:58.1]} 33... c5
{[%clk 0:00:18]} 34. Bxh6 {[%clk 0:00:56.5]} 34... cxb4 {[%clk 0:00:17.6]} 35.
Bxg7 {[%clk 0:00:51.5]} 35... Rgxg7 {[%clk 0:00:18.5]} 36. cxb4 {[%clk
0:00:49.4]} 36... Rc2+ {[%clk 0:00:16.7]} 37. Kg3 {[%clk 0:00:49.6]} 37... Rc4
{[%clk 0:00:17.4]} 38. Rh6 {[%clk 0:00:48.6]} 38... Kf7 {[%clk 0:00:17.3]} 39.
Rf6+ {[%clk 0:00:48.3]} 39... Ke7 {[%clk 0:00:17.8]} 40. Rhh6 {[%clk 0:00:48.8]}
40... Rc6 {[%clk 0:00:18.2]} 41. f4 {[%clk 0:00:46.9]} 41... d4 {[%clk
0:00:18.4]} 42. Kf3 {[%clk 0:00:46.9]} 42... d3 {[%clk 0:00:18.5]} 43. g5 {[%clk
0:00:46.2]} 43... Rf7 {[%clk 0:00:13.1]} 44. Ke3 {[%clk 0:00:41.1]} 44... Rxf6
{[%clk 0:00:13.2]} 45. gxf6+ {[%clk 0:00:41.2]} 45... Kf7 {[%clk 0:00:13.7]} 46.
Kxd3 {[%clk 0:00:37.8]} 46... Rc4 {[%clk 0:00:14]} 47. Rh7+ {[%clk 0:00:36.3]}
47... Kg6 {[%clk 0:00:14]} 48. Rg7+ {[%clk 0:00:36.1]} 48... Kh6 {[%clk
0:00:13.6]} 49. Re7 {[%clk 0:00:35.2]} 49... Rxf4 {[%clk 0:00:13.1]} 50. Rxe6
{[%clk 0:00:35.5]} 50... Rxb4 {[%clk 0:00:13.3]} 51. Rxa6 {[%clk 0:00:34]} 51...
Kg6 {[%clk 0:00:13.1]} 52. Rb6 {[%clk 0:00:32.7]} 52... Ra4 {[%clk 0:00:10.2]}
53. Rxb5 {[%clk 0:00:31.3]} 53... Kf7 {[%clk 0:00:10.4]} 54. Rb7+ {[%clk
0:00:29.1]} 54... Ke6 {[%clk 0:00:10.8]} 55. f7 {[%clk 0:00:28.8]} 55... Rf4
{[%clk 0:00:09.3]} 56. a6 {[%clk 0:00:28.9]} 56... Kxe5 {[%clk 0:00:09.8]} 57.
a7 {[%clk 0:00:28.7]} 1-0

[Event "Late-Titled-Tuesday-Blitz-October-24-2023"]
[Site "Chess.com"]
[Date "2023.10.24"]
[Round "2"]
[White "Rodalquilar"]
[Black "rdarruda"]
[Result "0-1"]
[WhiteElo "2735"]
[BlackElo "2548"]
[TimeControl "180+1"]
[EndTime "14:19:27 PDT"]
[Termination "rdarruda won by checkmate"]

1. d4 {[%clk 0:03:00.9]} 1... Nf6 {[%clk 0:02:43.3]} 2. Nf3 {[%clk 0:03:01.2]}
2... e6 {[%clk 0:02:43.4]} 3. Bf4 {[%clk 0:03:01.5]} 3... d5 {[%clk 0:02:43.7]}
4. e3 {[%clk 0:03:02]} 4... c5 {[%clk 0:02:43.8]} 5. Nbd2 {[%clk 0:03:01.5]}
5... Nc6 {[%clk 0:02:43.8]} 6. c3 {[%clk 0:03:01.7]} 6... Bd6 {[%clk 0:02:43.8]}
7. Bg3 {[%clk 0:03:01.3]} 7... O-O {[%clk 0:02:43.6]} 8. Bb5 {[%clk 0:03:01.5]}
8... Bxg3 {[%clk 0:02:40]} 9. hxg3 {[%clk 0:03:01.3]} 9... Qb6 {[%clk
0:02:38.5]} 10. a4 {[%clk 0:02:59.8]} 10... a6 {[%clk 0:02:37.9]} 11. Bxc6
{[%clk 0:02:59.8]} 11... Qxc6 {[%clk 0:02:38.8]} 12. Ne5 {[%clk 0:02:55.5]}
12... Qc7 {[%clk 0:02:37.2]} 13. Qc2 {[%clk 0:02:52.2]} 13... g6 {[%clk
0:02:31.2]} 14. g4 {[%clk 0:02:46.8]} 14... Kg7 {[%clk 0:02:29.1]} 15. g5 {[%clk
0:02:46.6]} 15... Nd7 {[%clk 0:02:29.1]} 16. Ndf3 {[%clk 0:02:45.1]} 16... Nxe5
{[%clk 0:02:06.2]} 17. Nxe5 {[%clk 0:02:35.7]} 17... Bd7 {[%clk 0:02:05.8]} 18.
Qe2 {[%clk 0:02:31.1]} 18... f6 {[%clk 0:01:56.9]} 19. gxf6+ {[%clk 0:02:20.2]}
19... Rxf6 {[%clk 0:01:57.8]} 20. Qg4 {[%clk 0:02:14.3]} 20... cxd4 {[%clk
0:01:46.3]} 21. exd4 {[%clk 0:02:13.2]} 21... Rh8 {[%clk 0:01:44.4]} 22. Qg3
{[%clk 0:01:19]} 22... h6 {[%clk 0:01:36.2]} 23. Rh4 {[%clk 0:01:10.9]} 23...
Be8 {[%clk 0:01:34.6]} 24. O-O-O {[%clk 0:01:02.1]} 24... Bxa4 {[%clk
0:01:30.2]} 25. Rdh1 {[%clk 0:01:01.9]} 25... Be8 {[%clk 0:01:29.8]} 26. Rxh6
{[%clk 0:00:59.2]} 26... Rxh6 {[%clk 0:01:26.2]} 27. Rxh6 {[%clk 0:01:00.1]}
27... Qa5 {[%clk 0:01:12.6]} 28. Kb1 {[%clk 0:00:39.2]} 28... Kxh6 {[%clk
0:01:06.7]} 29. Ng4+ {[%clk 0:00:18.7]} 29... Kg7 {[%clk 0:01:06.7]} 30. Qd6
{[%clk 0:00:13.1]} 30... Bf7 {[%clk 0:00:55.7]} 31. Qe5 {[%clk 0:00:11.3]} 31...
Qd8 {[%clk 0:00:54.6]} 32. f4 {[%clk 0:00:11]} 32... Qe7 {[%clk 0:00:21.5]} 33.
g3 {[%clk 0:00:10.1]} 33... Be8 {[%clk 0:00:22]} 34. Kc1 {[%clk 0:00:04.8]}
34... Bd7 {[%clk 0:00:18.7]} 35. Kd2 {[%clk 0:00:04.4]} 35... Kf7 {[%clk
0:00:18.6]} 36. Nh6+ {[%clk 0:00:03.4]} 36... Ke8 {[%clk 0:00:17.7]} 37. Ng8
{[%clk 0:00:03.7]} 37... Rf5 {[%clk 0:00:16.4]} 38. Qh8 {[%clk 0:00:02.6]} 38...
Rf8 {[%clk 0:00:14.7]} 39. Nxe7 {[%clk 0:00:01.6]} 39... Rxh8 {[%clk 0:00:14]}
40. Nxg6 {[%clk 0:00:02.5]} 40... Rh2+ {[%clk 0:00:14.1]} 41. Kd3 {[%clk
0:00:02.3]} 41... Rxb2 {[%clk 0:00:12.8]} 42. Ne5 {[%clk 0:00:02.9]} 42... Bb5+
{[%clk 0:00:12.6]} 43. Ke3 {[%clk 0:00:03]} 43... a5 {[%clk 0:00:13.2]} 44. c4
{[%clk 0:00:01.5]} 44... dxc4 {[%clk 0:00:12.3]} 45. d5 {[%clk 0:00:02.4]} 45...
exd5 {[%clk 0:00:11.8]} 46. f5 {[%clk 0:00:03.1]} 46... a4 {[%clk 0:00:11.9]}
47. Kd4 {[%clk 0:00:03.6]} 47... a3 {[%clk 0:00:12.1]} 48. g4 {[%clk 0:00:04.3]}
48... a2 {[%clk 0:00:12.4]} 49. Kc5 {[%clk 0:00:05.2]} 49... a1=Q {[%clk
0:00:12.8]} 50. Kd6 {[%clk 0:00:05.9]} 50... Qa3+ {[%clk 0:00:12.4]} 51. Ke6
{[%clk 0:00:06]} 51... Re2 {[%clk 0:00:12.5]} 52. Kf6 {[%clk 0:00:05.9]} 52...
Qc3 {[%clk 0:00:11.7]} 53. g5 {[%clk 0:00:05.7]} 53... Qxe5+ {[%clk 0:00:12.6]}
54. Kg6 {[%clk 0:00:06.6]} 54... Kf8 {[%clk 0:00:11.1]} 55. f6 {[%clk
0:00:07.2]} 55... Be8+ {[%clk 0:00:11.4]} 56. Kh7 {[%clk 0:00:07.5]} 56... Rh2#
{[%clk 0:00:11.3]} 0-1